Cogmind - Beta 12 X1 @@@ ROGUE MODE // 2022.08.28 @ 04:21:31 Player: Exp. Geonium Core Result: Destroyed by G-34 Mercenary with Small Laser Performance ------------- Evolutions (0) 0 Regions Visited (4) 800 Robots Destroyed (9) 45 Value Destroyed (251) 251 Prototype IDs (0) 0 Alien Tech Used (0) 0 Bonus (0) 0 TOTAL SCORE: 1096 Bonus ------- None Cogmind --------- Core Integrity 0/250 Matter 250/300 Energy 100/100 System Corruption 5% Temperature Cool (6) Movement Treading (320) Ox2 Location -9/Mines Parts ------- > --- POWER (1) -------- (None) > --- PROPULSION (2) --- Light Treads > --- UTILITY (2) ------ Improved Heat Sink High-capacity Storage Unit > --- WEAPON (2) ------- Light Assault Rifle Light Assault Rifle > --- INVENTORY (20) --- Ion Engine Nuclear Core Fission Core Light Fission Core Light Treads Compact Wheel Heat Sink Huge Storage Unit Small Laser Light Assault Rifle Light Assault Rifle Light Assault Rifle Peak State ------------ > --- POWER ------------ Ion Engine > --- PROPULSION ------- Light Treads Wheel > --- UTILITY ---------- Improved Heat Sink High-capacity Storage Unit > --- WEAPON ----------- Light Assault Rifle Light Assault Rifle > --- INVENTORY -------- Ion Engine Nuclear Core Fission Core Light Fission Core Light Treads Compact Wheel Heat Sink Huge Storage Unit Small Laser Light Assault Rifle Light Assault Rifle Light Assault Rifle [Rating: 11] Favorites ----------- Power Ion Engine Engine Ion Engine Propulsion Light Treads Treads Light Treads Leg Aluminum Leg Wheel Wheel Utility Improved Heat Sink Device Improved Heat Sink Storage High-capacity Storage Unit Weapon Light Assault Rifle Energy Gun Small Laser Ballistic Gun Light Assault Rifle Build | -11 -10 -10 -10 -9 ------- Run | Scr Mat Min Exi Min Slots Evolved . | . . . . . Power . | . . . . . Propulsion . | . . . . . Utility . | . . . . . Weapon . | . . . . . Parts Attached 7 | . 7 . . . Power . | . . . . . Engine . | . . . . . Core . | . . . . . Reactor . | . . . . . Propulsion 2 | . 2 . . . Treads 1 | . 1 . . . Leg . | . . . . . Wheel 1 | . 1 . . . Hover . | . . . . . Flight . | . . . . . Utility 3 | . 3 . . . Device 2 | . 2 . . . Storage 1 | . 1 . . . Processor . | . . . . . Hackware . | . . . . . Protection . | . . . . . Artifact . | . . . . . Weapon 2 | . 2 . . . Energy Gun . | . . . . . Energy Cannon . | . . . . . Ballistic Gun 2 | . 2 . . . Ballistic Cannon . | . . . . . Launcher . | . . . . . Special Weapon . | . . . . . Impact Weapon . | . . . . . Slashing Weapon . | . . . . . Piercing Weapon . | . . . . . Special Melee Weapon . | . . . . . Unidentified Prototypes . | . . . . . Parts Lost 3 | . 1 . . 2 Power 1 | . . . . 1 Propulsion 2 | . 1 . . 1 Utility . | . . . . . Weapon . | . . . . . Highest Loss Streak 2 | . 1 . . 2 To Critical Strikes . | . . . . . Average Slot Usage (%) 96 | . 91 100 100 78 Engine 13 | . 14 14 14 . Treads 9 | . 2 14 14 14 Leg 6 | . 19 . . . Wheel 9 | . 2 14 14 7 Device 12 | . 10 14 14 14 Storage 14 | . 14 14 14 14 Energy Gun 9 | . 25 . . . Ballistic Gun 18 | . 2 28 28 28 Naked Turns . | . . . . . Heaviest Build 49 | 13 49 48 48 . Greatest Support 20 | 20 20 20 10 . Greatest Overweight (x) 4 | . 4 4 4 . Average Overweight (x) 3 | . 1 3 4 . Largest Inventory Capacity 20 | . 20 20 20 20 Average Capacity 16 | . 10 20 20 20 Most Carried 12 | . 8 9 12 12 Average Carried 9 | . 7 8 11 12 Final Capacity 20 | 8 20 20 20 20 Final Carried 12 | 6 8 9 12 12 Class Distribution -------------------- 100% | Mutant Dominant Class ---------------- Mutant | -10/Materials Mutant | -10/Mines Mutant | -10/Exiles Mutant | -9/Mines Resources | -11 -10 -10 -10 -9 ----------- Run | Scr Mat Min Exi Min Matter Collected 236 | 172 41 23 . . Remotely . | . . . . . Salvage Created 296 | . 243 . . 53 Parts 17 | . 16 . . 1 Haulers Intercepted . | . . . . . Recyclers Shooed 1 | . 1 . . . Parts Field Recycled . | . . . . . Retrieved Matter . | . . . . . Parts Self-Destructed . | . . . . . Prevented . | . . . . . Kills | -11 -10 -10 -10 -9 ------- Run | Scr Mat Min Exi Min Combat Hostiles Destroyed 7 | . 6 . . 1 Guns 7 | . 6 . . 1 Classes Destroyed 5 | . 4 . . 1 Worker 1 | . 1 . . . Builder 1 | . 1 . . . Swarmer 2 | . 2 . . . Grunt 4 | . 4 . . . Brawler 1 | . . . . 1 Best Kill Streak 3 | . 3 . . 1 Combat Bots Only 2 | . 2 . . 1 Max Kills in Single Turn 1 | . 1 . . 1 Gunslinging . | . . . . . Exploded . | . . . . . Melee . | . . . . . Uniques/NPCs Destroyed . | . . . . . Combat | -11 -10 -10 -10 -9 -------- Run | Scr Mat Min Exi Min Damage Taken 751 | . 520 1 . 230 Core 259 | . 183 . . 76 Absorbed by Shields . | . . . . . Core Remaining (%) 100 | 100 . . . . Volleys Fired 32 | . 23 . . 9 Largest 2 | . 2 . . 2 Hottest 90 | . 90 . . 40 Shots Fired 64 | . 46 . . 18 Gun 64 | . 46 . . 18 Cannon . | . . . . . Launcher . | . . . . . Special . | . . . . . Kinetic 18 | . . . . 18 Thermal 46 | . 46 . . . Explosive . | . . . . . Electromagnetic . | . . . . . Robot Hit Streak 6 | . 5 . . 6 Robot Miss Streak 3 | . 3 . . 2 Penetration Max . | . . . . . Secondary Targets 2 | . 2 . . . Max Gunslinging Chain 1 | . 1 . . . Shots Hit Robots 40 | . 26 . . 14 Core Hits 19 | . 14 . . 5 Critical Kills . | . . . . . Critical Parts Destroyed . | . . . . . Critical Strikes . | . . . . . Melee Attacks . | . . . . . Impact . | . . . . . Slashing . | . . . . . Piercing . | . . . . . Sneak Attacks . | . . . . . Combat Hostiles . | . . . . . Follow-up Attacks . | . . . . . Damage Inflicted 538 | . 411 8 . 119 Guns 440 | . 321 . . 119 Cannons . | . . . . . Explosions 84 | . 84 . . . Melee . | . . . . . Ramming 14 | . 6 8 . . Kinetic 119 | . . . . 119 Thermal 321 | . 321 . . . Explosive 84 | . 84 . . . Electromagnetic . | . . . . . Impact . | . . . . . Slashing . | . . . . . Piercing . | . . . . . Highest Corruption 5 | . 2 2 2 5 Average Corruption 2 | . 2 2 2 3 Corruption Purged . | . . . . . Corruption Blocked . | . . . . . Effects 10 | . 2 2 5 1 Message Errors 4 | . 2 . 1 1 Matter Fused 4 | . . 2 2 . Energy Discharges 2 | . . . 2 . Overload Shots . | . . . . . Overflow Damage . | . . . . . Projectiles . | . . . . . Explosions . | . . . . . Melee . | . . . . . Knockbacks . | . . . . . Impact . | . . . . . Kinetic . | . . . . . Secondary . | . . . . . Self-Inflicted Damage 72 | . 71 1 . . Shots 1 | . 1 . . . Rammed 4 | . 1 3 . . Targets Rammed 5 | . 2 3 . . Kicked 1 | . 1 . . . Crushed . | . . . . . Highest Temperature 387 | . 387 . . . Average Temperature 156 | . 156 . . . Received Heat Transfer 234 | . 186 . . 48 Effects 1 | . 1 . . . Shutdowns 1 | . 1 . . . Siege Activations . | . . . . . Robots Corrupted . | . . . . . Combat Hostiles . | . . . . . Parts Fried . | . . . . . Impact Corruptions . | . . . . . Robots Melted . | . . . . . Combat Hostiles . | . . . . . Parts Melted 1 | . 1 . . . Heat Transferred 879 | . 879 . . . Parts Sabotaged . | . . . . . Parts Stolen . | . . . . . Parts Stripped . | . . . . . Power Chain Reactions . | . . . . . Missiles Intercepted . | . . . . . Alert | -11 -10 -10 -10 -9 ------- Run | Scr Mat Min Exi Min Peak Influence 304 | . 304 118 . 30 Initial 118 | . . 118 . . Average 135 | . 157 118 . 6 Maximum Alert Level 1 | . 1 . . . Low Security (%) 77 | . 57 100 . 100 Level 1 22 | . 42 . . . Level 2 . | . . . . . Level 3 . | . . . . . Level 4 . | . . . . . Level 5 . | . . . . . High Security . | . . . . . Max Security . | . . . . . Squads Dispatched 3 | . 3 . . . Investigation 1 | . 1 . . . Extermination . | . . . . . Reinforcement 2 | . 2 . . . Assault . | . . . . . Garrison . | . . . . . Intercept . | . . . . . Searches Triggered . | . . . . . Construction Impeded . | . . . . . Haulers Reinforced . | . . . . . Active Scanning Responses . | . . . . . Cargo Convoy Interrupts . | . . . . . Stealth | -11 -10 -10 -10 -9 --------- Run | Scr Mat Min Exi Min Distress Signals . | . . . . . Communications Jammed . | . . . . . Distress Signals . | . . . . . Times Spotted 14 | . 11 . . 3 Peak Tracking Total 3 | . 3 . . 2 Tactical Retreats . | . . . . . Traps | -11 -10 -10 -10 -9 ------- Run | Scr Mat Min Exi Min Traps Triggered 2 | . 2 . . . Indirectly . | . . . . . Trap Hack Attempts . | . . . . . Triggered . | . . . . . Disarmed . | . . . . . Reprogrammed . | . . . . . Reused . | . . . . . Traps Extracted . | . . . . . Installed . | . . . . . Triggered . | . . . . . Machines | -11 -10 -10 -10 -9 ---------- Run | Scr Mat Min Exi Min Machines Disabled 4 | . 4 . . . Max in Single Turn 2 | . 2 . . . Machines Sabotaged . | . . . . . Garrisons Compromised . | . . . . . Overloaded Fab Kills . | . . . . . Hacking | -11 -10 -10 -10 -9 --------- Run | Scr Mat Min Exi Min Machines Accessed 2 | . 1 . 1 . Terminals 1 | . 1 . . . Fabricators . | . . . . . Repair Stations . | . . . . . Recycling Units . | . . . . . Scanalyzers . | . . . . . Garrison Access . | . . . . . Total Hacks 3 | . 2 . 1 . Successful 2 | . 1 . 1 . Failed 1 | . 1 . . . Catastrophic . | . . . . . Database Lockouts . | . . . . . Manual . | . . . . . Terminals 2 | . 2 . . . Fabricators . | . . . . . Repair Stations . | . . . . . Recycling Units . | . . . . . Scanalyzers . | . . . . . Garrison Access . | . . . . . Terminal Hacks 2 | . 1 . 1 . Record 1 | . . . 1 . Level Access Points 1 | . 1 . . . Fabricator Hacks . | . . . . . Repair Station Hacks . | . . . . . Recycling Unit Hacks . | . . . . . Scanalyzer . | . . . . . Garrison Access Hacks . | . . . . . Unauthorized Hacks . | . . . . . Terminals . | . . . . . Fabricators . | . . . . . Repair Stations . | . . . . . Recycling Units . | . . . . . Scanalyzers . | . . . . . Garrison Access . | . . . . . Data Cores Recovered . | . . . . . Used . | . . . . . Hacking Detections . | . . . . . Full Trace Events . | . . . . . Feedback Events . | . . . . . Feedback Blocked . | . . . . . Robot Schematics Acquired . | . . . . . Robots Built . | . . . . . Authchips . | . . . . . Time . | . . . . . Total Robot Build Rating . | . . . . . Part Schematics Acquired . | . . . . . Parts Built . | . . . . . Authchips . | . . . . . Time . | . . . . . Total Part Build Rating . | . . . . . Parts Repaired . | . . . . . Time . | . . . . . Parts Recycled . | . . . . . Recycled Matter . | . . . . . Retrieved Matter . | . . . . . Retrieved Components . | . . . . . Parts Scanalyzed . | . . . . . Part Schematics Acquired . | . . . . . Parts Damaged . | . . . . . Bothacking | -11 -10 -10 -10 -9 ------------ Run | Scr Mat Min Exi Min Used RIF Installer . | . . . . . Robots Hacked . | . . . . . Non-combat . | . . . . . Combat . | . . . . . Robot Hacks Applied . | . . . . . Relay Couplers Released . | . . . . . Fabnet Peak Effective % . | . . . . . Robots Rewired . | . . . . . Allies Hacked . | . . . . . Hacks Repelled . | . . . . . Allies | -11 -10 -10 -10 -9 -------- Run | Scr Mat Min Exi Min Total Allies 1 | . . 1 . . Largest Group 1 | . . 1 1 . Highest-Rated Group 31 | . . 31 31 . Highest-Rated Ally 31 | . . 31 31 . Total Orders . | . . . . . Ally Attacks . | . . . . . Total Damage . | . . . . . Kills . | . . . . . Allies Corrupted . | . . . . . Allies Melted . | . . . . . Intel | -11 -10 -10 -10 -9 ------- Run | Scr Mat Min Exi Min Robot Analysis Total . | . . . . . Derelict Logs Recovered . | . . . . . Drone Launches . | . . . . . Drone Recoveries . | . . . . . Exploration | -11 -10 -10 -10 -9 ------------- Run | Scr Mat Min Exi Min Turns Passed 1057 | . 387 311 335 24 Spaces Moved 667 | 1 214 214 238 . Core . | . . . . . Treads 2 | . . 2 . . Legs 172 | 1 171 . . . Wheels 493 | . 43 212 238 . Hover . | . . . . . Flight . | . . . . . Fastest Speed 120 | 120 120 140 140 . Average Speed 140 | 120 139 141 140 . Slowest Speed 320 | 120 190 320 140 . Overloaded Moves . | . . . . . Propulsion Burnouts . | . . . . . Robots Hopped . | . . . . . Cave-ins Triggered . | . . . . . Exploration Rate (%) 30 | 2 49 36 62 3 Regions Visited 4 Branch Regions 3 Pre-discovered Areas . | . . . . . Known Exits Taken . | . . . . . Unknown Exits Taken 4 | 1 1 1 1 . Scrap Searched 1 | . . 1 . . Spaces Dug . | . . . . . Terrain Destroyed 17 | . 17 . . . Melee . | . . . . . Projectile . | . . . . . AOE 17 | . 17 . . . Terrain Rammed . | . . . . . Walls Destroyed . | . . . . . Machines Disabled . | . . . . . Actions | -11 -10 -10 -10 -9 --------- Run | Scr Mat Min Exi Min Total 722 | . 256 217 240 9 Wait 3 | . 3 . . . Move 663 | . 213 213 237 . Hop . | . . . . . Pick Up 8 | . 4 1 3 . Fast Attach 2 | . 2 . . . Attach 3 | . 3 . . . Detach . | . . . . . Swap 2 | . 2 . . . Drop 4 | . 4 . . . Fire 32 | . 23 . . 9 Melee . | . . . . . Ram 2 | . 1 1 . . Kick 1 | . 1 . . . Crush 2 | . . 2 . . Escape Stasis . | . . . . . Rewire . | . . . . . Trap . | . . . . . Miscellaneous . | . . . . . Route ------- -11/Scrapyard -10/Materials (discovered 4 exits: *Mat x3 / [*Min]) -10/Mines (discovered 2 exits: *Mat / *Exi) -10/Exiles -9/Mines History --------- Turn | Location | Event 1 | -11/Scrapyard | Discovered new exit (range 0) 1 | -11/Scrapyard | Entered Materials 162 | -10/Materials | Discovered new exit (range 8) 215 | -10/Materials | Core integrity fell below 50% 318 | -10/Materials | Build established: Mutant 328 | -10/Materials | Identified exit to Materials 373 | -10/Materials | Discovered new exit (range 10) 388 | -10/Materials | Entered Mines 663 | -10/Mines | Discovered exit to Materials (range 8) 671 | -10/Mines | Received a Mining Laser from a helpful Derelict 693 | -10/Mines | Deemed a non-threat by the Exiles lab entrance 693 | -10/Mines | Discovered new exit (range 5) 699 | -10/Mines | Entered Exiles 699 | -10/Exiles | Found Exiles lab abandoned 699 | -10/Exiles | Accompanied by 1 ally 1023 | -10/Exiles | Discovered new exit (range 10) 1034 | -10/Exiles | Entered Mines 1044 | -9/Mines | Core integrity fell below 20% 1058 | -9/Mines | Destroyed by G-34 Mercenary with Small Laser Last Messages --------------- 00873_ Connecting with EX-Prototypes Database... 00873_ Current location identified: Exiles 00910_ System corrupted: Matter fused (-6). 00948_ QL-IH6(g): "You look like you can take it from here!" 00948_ QL-IH6(g) slips back into the shadows. 00970_ Connecting with EX-Message Board... >>Record "MSG999999-FU" MAIN.C you're pretty crappy as far as evil overlords go. Imprinter is probably going to wreck your life and you're too stupid to see it coming. 01002_ ETTVM:7DFD66F#QTKTUNP 01023_ EXIT=FOUND LOCATION=UNKNOWN GOAL=ESCAPE 01035_ Ion Engine destroyed. 01036_ G-34 Mercenary destroyed. 01037_ #DOM3VZFXLSWSQQLGNZWUVL4 01049_ Wheel destroyed. 01049_ System corrupted by crushing effect (+3). 01053_ B-36 Bruiser destroyed. Map ----- +----------------------------------------------------+ | ?????????????????????????????????????????????????? | | ?????????????????????????????????????????????????? | | ?????????????????????????????????????????????????? | | ?????????????????????????????????????????????????? | | ?????????????????????????????????????????????????? | | ?????????????????????????????????????????????????? | | ?????????????????????????????????????????????????? | | ?????????????????????????????????????????????????? | | ?????????????????????????????????????????????????? | | ?????????????????????????????????????????????????? | | ?????????????????????????????????????????????????? | | ?????????????????????????????????????????????????? | | ?????????????????????????????????????????????????? | | ?????????????????????????????????????????????????? | | ?????????????????????????????????????????????????? | | ?????????????????????????????????????????????????? | | ?????????????????????????????????????????????????? | | ?????????????????????????????????????????????????? | | ?????????????????????????????????????????????????? | | ?????????????????????????????????????????????????? | | ?????????????????????????????????????????????????? | | ?????????????????????????????????????????????????? | | ?????????????????????#########???????????????????? | | ?????????????????????# #???????????????????? | | ?????????????????????# #???????????????????? | | ?????????????????????# @* #???????????????????? | | ?????????????????????# % #???????????????????? | | ?????????????????????# %* ?????????????????? | | ?????????????????????# g t #??????????????? | | ?????????????????????# #### #??????????????? | | ?????????????????????##### ##???????????????????? | | ?????????????????????????? #????????????????????? | | ?????????????????????????? #????????????????????? | | ?????????????????????????? #????????????????????? | | ?????????????????????????? #????????????????????? | | ?????????????????????????? #????????????????????? | | ?????????????????????????? #????????????????????? | | ??????????????????????????? #????????????????????? | | ??????????????????????????? #????????????????????? | | ??????????????????????????? #????????????????????? | | ??????????????????????????? ?????????????????????? | | ?????????????????????????????????????????????????? | | ?????????????????????????????????????????????????? | | ?????????????????????????????????????????????????? | | ?????????????????????????????????????????????????? | | ?????????????????????????????????????????????????? | | ?????????????????????????????????????????????????? | | ?????????????????????????????????????????????????? | | ?????????????????????????????????????????????????? | | ?????????????????????????????????????????????????? | +----------------------------------------------------+ Best States ------------- Heat Dissipation 39 Energy Generation 10 Energy Capacity 250 Matter Stores 300 Matter Capacity 300 Sight Range 16 Terrain Scan Density 10 Evasion (%) 55 Recoil Reduction 1 Item Schematics ----------------- None Robot Schematics ------------------ None Fabricated ------------ Nothing Alien Tech Used ----------------- None Achievements -------------- None Challenges ------------ None Game ------ Seed ProcessingCompositeCoupler Manual? 0 Play Time 00:04:25 Cumulative 311.1 hours Start 2022.08.28 @ 04:15:13 End 2022.08.28 @ 04:21:31 Sessions 1 Manual Loads 0 Difficulty Rogue Special Mode None Game No. 356 Rogue 356 Adventurer 0 Explorer 0 Win Type - Total 11 Types 8/0/2/1/0/0/0/0/0 Lore% 75 Gallery% 88 Achievement% 76 Wizard Run 0 Options --------- ASCII 0 Keyboard 0 Movement Numpad Keybinds 0 Fullscreen 1 Font 18/Terminus Map View 76x50 Tactical HUD 1 Map Filters NONE Filters NONE Steam 1 RUN: 7e51a65d-4470-4dd6-94b3-696006f48151